bitfinex-derivatives/quotes_SOLF0:USTF0_20250516
["timestamp","ask_amount","ask_price","bid_price","bid_amount"]
[1747400178827,118.8,172.6,172.5,6.79815953]
[1747400179024,118.8,172.6,172.48,59.34]
[1747400179223,5.7926,172.56,172.48,59.34]
[1747400179430,124.5526,172.56,172.53,5.7936]
[1747400179629,118.76,172.56,172.53,5.7936]
[1747400179925,118.76,172.56,172.48,59.34]
[1747400180128,118.76,172.56,172.46,1.8746]
[1747400180332,124.5527,172.56,172.46,1.8746]
[1747400180633,118.76,172.56,172.49,5.7949]
[1747400180832,118.76,172.56,172.46,1.8746]
[1747400181135,118.76,172.56,172.48,5.7952]
[1747400181334,5.794,172.52,172.48,5.7952]
[1747400181636,118.8,172.51,172.45,3.8766]
[1747400182638,118.8,172.51,172.45,1.8814]
[1747400183138,118.8,172.51,172.49,5.7948]
[1747400183528,118.8,172.51,172.43,10.65205953]
[1747400183730,118.8,172.51,172.47,5.7955]
[1747400184129,124.5943,172.51,172.46,5.7959]
[1747400184435,118.8,172.51,172.43,3.8539]
[1747400184834,501.3641,172.55,172.43,3.8539]
[1747400185034,118.88,172.54,172.43,3.8539]
[1747400185233,5.7942,172.52,172.43,3.8539]
[1747400185439,118.88,172.54,172.43,3.8539]
[1747400185840,5.794,172.52,172.47,5.7953]
[1747400186038,118.88,172.54,172.43,3.8539]
[1747400186335,500.5,172.55,172.44,6.79815953]
[1747400186540,118.88,172.54,172.44,6.79815953]
[1747400186842,5.7936,172.53,172.43,63.2539]
[1747400187044,5.7936,172.53,172.43,70.05205953]
[1747400187245,118.88,172.54,172.43,70.05205953]
[1747400187541,5.7942,172.52,172.48,5.795]
[1747400188240,5.7942,172.52,172.49,5.7948]
[1747400188445,5.7937,172.53,172.49,5.7948]
[1747400188741,118.88,172.54,172.43,10.65205953]
[1747400188945,5.7937,172.53,172.43,10.65205953]
[1747400189349,124.6733,172.54,172.43,10.65205953]
[1747400189645,118.88,172.54,172.43,10.65205953]
[1747400189947,118.88,172.54,172.49,5.7947]
[1747400190446,5.7938,172.53,172.5,5.7946]
[1747400191742,124.6734,172.54,172.5,5.7946]
[1747400192142,118.88,172.54,172.52,5.7937]
[1747400192550,118.88,172.54,172.44,59.4]
[1747400193048,124.6735,172.54,172.44,59.4]
[1747400193251,124.6735,172.54,172.51,5.7942]
[1747400193546,65.1935,172.54,172.51,5.7942]
[1747400193752,59.42,172.53,172.51,5.7942]
[1747400194953,59.42,172.53,172.52,5.7939]
[1747400195153,59.42,172.53,172.44,59.4]
[1747400195549,59.42,172.53,172.5,5.7943]
[1747400195747,59.42,172.53,172.44,59.4]
[1747400196142,59.42,172.53,172.51,5.7942]
[1747400196346,118.82,172.53,172.51,5.7942]
[1747400196952,124.6136,172.53,172.5,5.7945]
[1747400197548,118.82,172.53,172.51,5.794]
[1747400198246,118.82,172.53,172.5,5.7944]
[1747400198647,118.82,172.53,172.44,59.4]
[1747400199350,124.6137,172.53,172.5,5.7944]
[1747400200955,124.6137,172.53,172.51,5.7942]
[1747400201155,118.82,172.53,172.51,5.7942]
[1747400201755,59.4,172.53,172.51,5.7942]
[1747400201950,118.82,172.53,172.51,5.7942]
[1747400202255,124.6137,172.53,172.5,5.7945]
[1747400202454,124.6137,172.53,172.44,59.4]
[1747400202455,118.82,172.53,172.44,59.4]
[1747400203949,124.6138,172.53,172.5,5.7943]
[1747400204153,118.82,172.53,172.44,59.4]
[1747400204456,118.82,172.53,172.51,5.794]
[1747400204659,118.82,172.53,172.44,59.4]
[1747400205054,118.82,172.53,172.52,5.7939]
[1747400208163,59.4,172.53,172.52,5.7939]
[1747400208461,59.42,172.56,172.54,5.7932]
[1747400208648,118.84,172.56,172.54,5.7932]
[1747400208855,1.8499,172.6,172.53,5.7934]
[1747400209056,118.84,172.59,172.53,5.7934]
[1747400209257,118.84,172.59,172.48,6.79815953]
[1747400210060,118.84,172.59,172.5,5.7943]
[1747400210255,5.7936,172.53,172.45,66.21815953]
[1747400210457,124.6136,172.53,172.45,66.21815953]
[1747400210662,118.82,172.53,172.45,66.21815953]
[1747400210863,118.82,172.53,172.45,6.79815953]
[1747400211063,5.794,172.52,172.45,6.79815953]
[1747400211264,118.82,172.53,172.5,5.7945]
[1747400211463,124.6138,172.53,172.5,5.7945]
[1747400212667,5.794,172.52,172.5,5.7945]
[1747400212866,118.82,172.53,172.51,5.794]
[1747400213065,118.82,172.53,172.45,6.79815953]
[1747400213564,124.6136,172.53,172.5,5.7943]
[1747400213967,118.82,172.53,172.45,6.79815953]
[1747400214166,5.7942,172.52,172.48,5.7949]
[1747400214364,5.7942,172.52,172.45,6.79815953]
[1747400214768,5.7942,172.52,172.5,5.7945]
[1747400214970,124.6137,172.53,172.5,5.7945]
[1747400215668,5.794,172.52,172.5,5.7945]
[1747400215871,118.82,172.53,172.5,5.7945]
[1747400216169,124.6137,172.53,172.5,5.7945]
[1747400216672,5.7939,172.52,172.49,5.7948]
[1747400216876,118.82,172.53,172.44,66.19815953]
[1747400218073,5.7948,172.5,172.47,5.7954]
[1747400219775,5.7952,172.49,172.46,5.7958]
[1747400219966,65.2152,172.49,172.46,5.7958]
[1747400220370,65.2152,172.49,172.44,6.79815953]
[1747400220669,1.5513,172.59,172.44,6.79815953]
[1747400220875,119.34,172.61,172.56,5.7925]
[1747400221070,119.34,172.61,172.52,6.7973304]
[1747400221574,119.34,172.61,172.52,8.7802304]
[1747400221772,5.7918,172.59,172.52,8.7802304]
[1747400221974,119.34,172.61,172.52,8.7802304]
[1747400222470,5.7913,172.6,172.52,8.7802304]
[1747400222674,119.34,172.61,172.52,8.7802304]
[1747400222871,5.7914,172.6,172.52,8.7802304]
[1747400223174,5.7914,172.6,172.56,5.7924]
[1747400223377,119.34,172.61,172.56,5.7924]
[1747400223574,5.7913,172.6,172.52,8.7802304]
[1747400223875,5.7913,172.6,172.56,5.7922]
[1747400224475,125.1311,172.61,172.57,5.792]
[1747400224675,119.34,172.61,172.57,5.792]
[1747400225174,125.131,172.61,172.57,5.792]
[1747400225374,119.34,172.61,172.57,5.792]
[1747400226581,5.7913,172.6,172.57,5.792]
[1747400227473,119.34,172.61,172.52,8.7802304]
[1747400227868,125.1311,172.61,172.57,5.792]
[1747400228182,125.1311,172.61,172.52,8.7802304]
[1747400228379,125.1311,172.61,172.58,5.7917]
[1747400228981,119.34,172.61,172.59,5.7915]
[1747400229476,125.1309,172.61,172.58,5.7918]
[1747400229880,65.2109,172.61,172.58,5.7918]
[1747400230081,124.9909,172.61,172.58,5.7918]
[1747400230681,119.2,172.61,172.52,8.7802304]
[1747400231182,119.2,172.61,172.52,1.9829]
[1747400231379,5.7923,172.57,172.54,5.793]
[1747400232384,5.792,172.58,172.55,5.7929]
[1747400232585,119.2,172.61,172.52,8.7802304]
[1747400232977,124.9512,172.61,172.58,5.7917]
[1747400235092,65.2112,172.61,172.58,5.7917]
[1747400235294,65.2112,172.61,172.59,5.7915]
[1747400235481,65.2112,172.61,172.53,59.74]
[1747400235681,5.7914,172.6,172.57,5.7919]
[1747400235891,5.7914,172.6,172.53,59.74]
[1747400236195,65.211,172.61,172.53,59.74]
[1747400236788,65.211,172.61,172.58,5.7917]
[1747400236987,65.211,172.61,172.53,59.74]
[1747400237394,59.42,172.61,172.55,6.7973304]
[1747400237793,59.42,172.61,172.6,5.7912]
[1747400240592,59.42,172.61,172.59,5.7914]
[1747400240894,59.42,172.61,172.55,6.7973304]
[1747400241195,65.2111,172.61,172.58,5.7916]
[1747400241393,59.42,172.61,172.52,8.7802304]
[1747400241593,59.42,172.61,172.52,68.3602304]
[1747400241999,5.7916,172.59,172.56,5.7924]
[1747400242194,59.42,172.61,172.52,68.3602304]
[1747400243106,65.211,172.61,172.59,5.7915]
[1747400248007,59.42,172.61,172.59,5.7915]
[1747400250310,65.2109,172.61,172.59,5.7915]
[1747400251113,59.42,172.61,172.59,5.7915]
[1747400252113,59.42,172.61,172.6,5.7912]
[1747400254506,65.211,172.61,172.52,68.3602304]
[1747400254908,59.42,172.61,172.58,5.7917]
[1747400255401,65.211,172.61,172.58,5.7917]
[1747400258012,5.7918,172.59,172.56,5.7925]
[1747400259611,5.7919,172.58,172.56,5.7925]
[1747400259815,59.4,172.59,172.52,8.7802304]
[1747400260110,59.4,172.59,172.48,59.4]
[1747400260310,66.1973304,172.59,172.48,5.7952]
[1747400260507,1.5486,172.58,172.48,5.7952]
[1747400260706,59.4,172.57,172.45,75.31733498]
[1747400260916,59.4,172.57,172.49,5.7949]
[1747400261217,59.4,172.57,172.45,75.31733498]
[1747400261415,59.4,172.57,172.47,5.7955]
[1747400261715,5.7945,172.51,172.45,75.31733498]
[1747400262213,5.7945,172.51,172.48,5.7951]
[1747400262816,5.7946,172.5,172.47,5.7955]
[1747400263617,5.7944,172.51,172.47,5.7955]
[1747400264117,118.8,172.53,172.45,75.31733498]
[1747400265116,124.5938,172.53,172.45,75.31733498]
[1747400265615,5.7939,172.52,172.45,75.31733498]
[1747400266319,5.7943,172.51,172.48,5.7951]
[1747400266518,118.8,172.53,172.45,1.9538]
[1747400266719,5.7939,172.52,172.5,5.7946]
[1747400267118,5.7939,172.52,172.45,1.9538]
[1747400268923,5.7943,172.51,172.48,5.7951]
[1747400269118,118.8,172.53,172.45,1.9538]
[1747400269521,5.7941,172.52,172.49,5.7949]
[1747400269908,118.8,172.53,172.49,5.7949]
[1747400270214,5.7945,172.51,172.45,1.9538]
[1747400270621,118.8,172.53,172.45,1.9538]
[1747400271118,118.8,172.53,172.47,5.7953]
[1747400271621,118.8,172.53,172.46,5.7959]
[1747400271922,118.8,172.53,172.45,1.9538]
[1747400272122,118.8,172.53,172.44,8.7095304]
[1747400272311,5.7951,172.49,172.44,8.7095304]
[1747400272722,5.7951,172.49,172.46,5.7957]
[1747400273923,5.7951,172.49,172.47,5.7956]
[1747400274118,5.7947,172.5,172.43,6.7973304]
[1747400274326,118.8,172.53,172.44,1.8132]
[1747400274518,118.8,172.53,172.48,5.795]
[1747400274719,5.7944,172.51,172.48,5.795]
[1747400277225,5.794,172.52,172.49,5.7947]
[1747400277431,118.8,172.53,172.44,1.8132]
[1747400277924,118.8,172.53,172.47,5.7953]
[1747400278731,5.7947,172.5,172.47,5.7953]
[1747400279632,5.7949,172.49,172.46,5.7958]
[1747400280429,5.7949,172.49,172.47,5.7956]
[1747400281330,5.7949,172.49,172.46,5.7958]
[1747400281732,5.7948,172.5,172.44,1.8132]
[1747400282232,118.8,172.53,172.48,5.7951]
[1747400282432,118.8,172.53,172.44,1.8132]
[1747400282433,5.794,172.52,172.44,1.8132]
[1747400282734,5.794,172.52,172.49,5.7947]
[1747400283530,59.4,172.53,172.51,5.794]
[1747400283733,59.4,172.53,172.46,6.7973304]
[1747400284233,5.7941,172.52,172.49,5.7947]
[1747400285434,5.7941,172.52,172.5,5.7946]
[1747400285634,65.1937,172.53,172.5,5.7946]
[1747400285838,59.4,172.53,172.5,5.7946]
[1747400286026,5.7942,172.52,172.49,5.7948]
[1747400286425,59.4,172.53,172.49,5.7948]
[1747400286631,5.794,172.52,172.49,5.7948]
[1747400286832,59.4,172.53,172.49,5.7948]
[1747400288738,5.7943,172.51,172.49,5.7948]
[1747400289237,5.7947,172.5,172.46,6.7973304]
[1747400289430,59.4,172.53,172.46,6.7973304]
[1747400289630,59.4,172.53,172.44,61.2332]
[1747400289835,5.7951,172.49,172.46,5.7958]
[1747400290032,65.2151,172.49,172.46,5.7958]
[1747400290233,59.42,172.49,172.47,5.7955]
[1747400291231,59.42,172.49,172.48,5.7952]
[1747400291837,59.42,172.52,172.44,3.6682]
[1747400292137,65.2139,172.52,172.44,3.6682]
[1747400293139,5.7939,172.52,172.44,3.6682]
[1747400293332,59.42,172.52,172.5,5.7943]
[1747400294039,59.42,172.52,172.49,5.7948]
[1747400294739,5.7944,172.51,172.49,5.7948]
[1747400294934,59.42,172.52,172.5,5.7945]
[1747400295439,59.42,172.52,172.51,5.7942]
[1747400295637,59.42,172.52,172.44,3.6682]
[1747400296733,65.2141,172.52,172.49,5.7948]
[1747400297242,65.2141,172.52,172.5,5.7945]
[1747400297447,59.42,172.52,172.5,5.7945]
[1747400297951,65.214,172.52,172.5,5.7945]
[1747400299943,5.7943,172.51,172.49,5.7948]
[1747400301043,65.214,172.52,172.49,5.7948]
[1747400301645,5.7943,172.51,172.48,5.7951]
[1747400302145,65.214,172.52,172.49,5.7948]
[1747400303747,59.42,172.52,172.44,3.6682]
[1747400304342,65.2141,172.52,172.49,5.7947]
[1747400304543,65.2141,172.52,172.44,3.6682]
[1747400305048,65.2141,172.52,172.49,5.7946]
[1747400305950,5.7946,172.5,172.44,3.6682]
[1747400306450,5.7947,172.5,172.44,3.6682]
[1747400307450,5.7947,172.5,172.47,5.7953]
[1747400307750,5.7949,172.49,172.47,5.7953]
[1747400308349,5.7947,172.5,172.47,5.7953]
[1747400310753,5.7949,172.49,172.47,5.7953]
[1747400310949,59.42,172.52,172.46,5.7958]
[1747400311350,5.7952,172.49,172.46,5.7958]
[1747400311649,65.1952,172.49,172.46,5.7958]
[1747400312449,65.1952,172.49,172.47,5.7955]
[1747400312751,59.4,172.49,172.47,5.7955]
[1747400312954,59.4,172.49,172.48,5.7952]
[1747400313549,59.4,172.49,172.47,5.7954]
[1747400314053,65.1949,172.49,172.47,5.7954]
[1747400317654,65.1954,172.48,172.43,6.7973304]
[1747400318057,65.1954,172.48,172.45,5.7961]
[1747400318259,5.7957,172.47,172.45,5.7961]
[1747400318553,59.4,172.48,172.43,5.7967]
[1747400319358,5.7962,172.46,172.43,5.7967]
[1747400319560,5.7962,172.46,172.44,5.7966]
[1747400320158,5.7956,172.47,172.44,5.7966]
[1747400320859,5.7956,172.47,172.45,5.7962]
[1747400321559,124.5956,172.47,172.45,5.7962]
[1747400322155,124.5956,172.47,172.44,5.7964]
[1747400323357,5.7959,172.46,172.44,5.7964]
[1747400323855,118.8,172.47,172.37,73.35781169]
[1747400324558,5.7974,172.42,172.34,70.1054304]
[1747400324757,124.5974,172.42,172.34,70.1054304]
[1747400325058,118.8,172.42,172.34,70.1054304]
[1747400325458,59.4,172.42,172.41,5.7976]
[1747400327263,59.4,172.42,172.4,5.7977]
[1747400328064,59.4,172.42,172.41,5.7976]
[1747400329363,59.4,172.42,172.4,5.7978]
[1747400330568,59.4,172.42,172.36,1.9603]
[1747400331062,59.4,172.42,172.41,5.7976]
[1747400331954,65.1967,172.44,172.41,5.7976]
[1747400332154,65.1967,172.44,172.42,5.7972]
[1747400333060,59.4,172.44,172.43,5.7969]
[1747400333257,118.8,172.46,172.37,6.7973304]
[1747400333567,59.4,172.47,172.45,5.7961]
[1747400333864,118.8,172.48,172.45,5.7961]
[1747400334565,5.7956,172.47,172.45,5.7961]
[1747400335464,124.5954,172.48,172.45,5.7961]
[1747400336663,118.8,172.48,172.38,6.7973304]
[1747400337063,5.7968,172.44,172.41,5.7974]
[1747400337364,118.8,172.48,172.38,6.7973304]
[1747400337769,5.7965,172.45,172.42,5.7972]
[1747400338869,5.7969,172.44,172.41,5.7975]
[1747400339065,5.7969,172.44,172.38,6.7973304]
[1747400339265,5.7969,172.44,172.36,15.413]
[1747400339565,5.7969,172.44,172.41,5.7974]
[1747400340567,59.38,172.46,172.37,6.7973304]
[1747400341371,65.1762,172.46,172.37,6.7973304]
[1747400341672,59.38,172.46,172.37,6.7973304]
[1747400342470,59.4,172.48,172.4,6.7973304]
[1747400342669,118.78,172.48,172.41,1.9072]
[1747400342972,118.78,172.48,172.46,5.7957]
[1747400343169,59.4,172.51,172.41,1.9072]
[1747400343363,59.38,172.5,172.43,6.7973304]
[1747400343563,59.38,172.5,172.43,66.1973304]
[1747400343564,65.1746,172.5,172.43,66.1973304]
[1747400343764,59.38,172.5,172.43,66.1973304]
[1747400344178,59.38,172.5,172.49,5.7949]
[1747400344371,65.1944,172.51,172.49,5.7949]
[1747400345378,5.7946,172.5,172.48,5.7951]
[1747400346279,124.5744,172.51,172.48,5.7951]
[1747400347479,124.5744,172.51,172.49,5.7949]
[1747400349580,5.7946,172.5,172.48,5.7952]
[1747400349781,5.7946,172.5,172.43,66.1973304]
[1747400349977,118.78,172.51,172.43,66.1973304]
[1747400350176,118.78,172.51,172.42,3.911]
[1747400350681,5.7955,172.48,172.46,5.7958]
[1747400350882,118.78,172.51,172.46,5.7958]
[1747400351480,5.795,172.49,172.46,5.7958]
[1747400352379,5.7953,172.48,172.46,5.7958]
[1747400352976,5.7958,172.47,172.45,5.7961]
[1747400353580,59.36,172.47,172.42,1.9443]
[1747400354184,5.7961,172.46,172.44,5.7965]
[1747400355479,59.36,172.49,172.42,1.9443]
[1747400355783,59.36,172.48,172.42,1.9443]
[1747400358187,5.7956,172.47,172.42,1.9443]
[1747400358588,59.36,172.48,172.42,1.9443]
[1747400358791,65.1555,172.48,172.42,1.9443]
[1747400359087,65.1555,172.48,172.45,5.796]
[1747400359692,65.1555,172.48,172.46,5.7958]
[1747400359894,59.36,172.48,172.42,1.9443]
[1747400360089,59.36,172.48,172.42,3.8499]
[1747400360283,59.36,172.48,172.46,5.7956]
[1747400361192,59.36,172.48,172.47,5.7956]
[1747400363692,65.16,172.48,172.28,1.00920757]
[1747400363898,6.7973304,172.45,172.3,6.7973304]
[1747400364199,5.7981,172.4,172.35,5.7994]
[1747400364496,118.7,172.39,172.35,5.7994]
[1747400365389,5.7987,172.38,172.35,5.7994]
[1747400366201,5.7991,172.37,172.34,5.7998]
[1747400369409,5.7991,172.37,172.35,5.7996]
[1747400370404,6.7973304,172.45,172.36,5.7993]
[1747400370615,118.74,172.44,172.31,1.9339]
[1747400371110,118.74,172.44,172.37,5.7989]
[1747400371408,118.74,172.44,172.31,1.9339]
[1747400371709,5.7988,172.38,172.35,5.7994]
[1747400371907,118.74,172.37,172.35,5.7994]
[1747400372711,118.74,172.37,172.29,1.8003]
[1747400373105,118.74,172.36,172.17,59.38]
[1747400373311,122.1685,172.36,172.27,5.8021]
[1747400373710,5.8018,172.29,172.26,5.8026]
[1747400373911,118.74,172.28,172.26,5.8026]
[1747400374113,118.74,172.28,172.21,6.7973304]
[1747400374308,118.74,172.28,172.26,5.8025]
[1747400374509,118.74,172.28,172.21,6.7973304]
[1747400374708,118.74,172.27,172.21,6.7973304]
[1747400375010,118.74,172.27,172.26,5.8026]
[1747400375308,59.34,172.28,172.21,6.7973304]
[1747400375511,59.34,172.28,172.18,14.76177509]
[1747400375711,59.34,172.28,172.2,6.7973304]
[1747400377815,59.34,172.28,172.27,5.8023]
[1747400378518,6.7973304,172.34,172.21,11.6087]
[1747400378723,118.76,172.33,172.23,6.7973304]
[1747400379617,118.76,172.32,172.3,5.8011]
[1747400381614,5.8003,172.33,172.3,5.8011]
[1747400381917,59.36,172.31,172.3,5.8011]
[1747400382614,3.4285,172.36,172.23,6.7973304]
[1747400382821,118.72,172.35,172.26,6.7973304]
[1747400383022,59.36,172.35,172.26,6.7973304]
[1747400383320,59.36,172.34,172.26,6.7973304]
[1747400383521,59.36,172.35,172.26,6.7973304]
[1747400383723,59.36,172.34,172.26,6.7973304]
[1747400384523,59.36,172.35,172.26,6.7973304]
[1747400384724,59.36,172.34,172.33,5.8003]
[1747400385225,59.36,172.34,172.26,6.7973304]
[1747400385226,59.36,172.34,172.25,1.9705]
[1747400385622,118.72,172.33,172.25,1.9705]
[1747400385821,124.5204,172.33,172.29,5.8013]
[1747400386526,124.5204,172.33,172.25,1.9705]
[1747400386725,1.8733,172.36,172.26,6.7973304]
[1747400387026,118.72,172.35,172.26,6.7973304]
[1747400387427,1.8733,172.36,172.29,5.8016]
[1747400387627,1.8733,172.36,172.25,1.9705]
[1747400387827,118.72,172.35,172.25,1.9705]
[1747400388027,118.72,172.35,172.29,5.8014]
[1747400388226,5.8005,172.33,172.29,5.8014]
[1747400388529,1.8733,172.36,172.3,5.8012]
[1747400388827,118.72,172.35,172.3,5.8012]
[1747400389027,5.8005,172.33,172.3,5.8012]
[1747400389231,118.72,172.35,172.29,5.8015]
[1747400389430,5.8005,172.33,172.25,1.9705]
[1747400389933,118.72,172.35,172.25,1.9705]
[1747400390124,5.8007,172.32,172.25,1.9705]
[1747400390326,118.72,172.31,172.3,5.8013]
[1747400392132,118.72,172.31,172.25,1.9705]
[1747400393234,5.8013,172.3,172.25,1.9705]
[1747400393631,118.72,172.31,172.25,1.9705]
[1747400394034,124.5212,172.31,172.28,5.8019]
[1747400394235,118.72,172.31,172.22,1.9095]
[1747400394739,5.802,172.28,172.22,1.9095]
[1747400395036,118.7,172.27,172.22,1.9095]
[1747400395330,124.5026,172.27,172.24,5.8031]
[1747400396734,5.8027,172.26,172.23,5.8036]
[1747400397932,5.8047,172.2,172.17,5.8055]
[1747400398126,118.7,172.2,172.09,12.5047304]
[1747400398426,5.8058,172.17,172.12,5.8073]
[1747400398634,118.7,172.16,172.09,12.5047304]
[1747400398830,59.34,172.15,172.09,12.5047304]
[1747400399534,59.34,172.15,172.12,5.8072]
[1747400399934,59.34,172.15,172.09,12.5047304]
[1747400400232,59.36,172.18,172.12,6.7973304]
[1747400401023,5.8041,172.22,172.18,5.8051]
[1747400401330,118.74,172.21,172.18,5.8051]
[1747400401532,10.2279304,172.26,172.12,6.7973304]
[1747400401728,5.8039,172.23,172.12,6.7973304]
[1747400402136,5.8034,172.24,172.2,5.8046]
[1747400402833,10.2279304,172.26,172.12,6.7973304]
[1747400403034,118.74,172.25,172.15,6.7973304]
[1747400403534,124.5432,172.25,172.21,5.8041]
[1747400404535,5.8034,172.24,172.21,5.8041]
[1747400404734,118.74,172.25,172.12,6.7973304]
[1747400405037,5.8042,172.22,172.12,6.7973304]
[1747400405224,118.74,172.24,172.12,6.7973304]
[1747400405730,5.8044,172.21,172.18,5.8053]
[1747400405934,118.74,172.2,172.18,5.8053]
[1747400406132,3.4306,172.26,172.18,5.8053]
[1747400406330,3.4306,172.26,172.15,6.7973304]
[1747400406535,118.74,172.25,172.15,6.7973304]
[1747400406837,118.74,172.25,172.16,3.6323]
[1747400407037,118.74,172.25,172.12,127.3614304]
[1747400407237,5.8045,172.21,172.17,5.8055]
[1747400407535,0.8758,172.29,172.11,1.8082]
[1747400407536,118.74,172.2,172.11,1.8082]
[1747400407835,5.8057,172.17,172.13,5.8068]
[1747400408133,5.8057,172.17,172.07,59.36]
[1747400408134,560.98,172.16,171.92,530.6894]
[1747400408431,6.7973304,172.14,172.06,5.8093]
[1747400408634,6.7973304,172.14,171.99,13.6238887]
[1747400408837,5.8074,172.12,172.07,5.809]
[1747400409029,118.9,172.13,172.0,1.16279069]
[1747400409438,506.0161,172.16,172.02,6.7973304]
[1747400409637,506.0161,172.16,172.03,1.16258792]
[1747400409836,118.9,172.15,172.05,6.7973304]
[1747400410136,59.5,172.15,172.08,6.7973304]
[1747400410338,59.52,172.16,172.09,1.9611]
[1747400410532,59.52,172.16,172.09,3.8555]
[1747400410931,59.52,172.16,172.15,5.8061]
[1747400411538,59.52,172.16,172.09,3.8555]
[1747400411934,59.52,172.16,172.14,5.8064]
[1747400412437,59.48,172.16,172.14,5.8064]
[1747400412736,59.48,172.16,172.13,5.8069]
[1747400413336,59.48,172.16,172.14,5.8066]
[1747400415333,59.48,172.16,172.15,5.8064]
[1747400415638,59.5,172.17,172.11,6.7973304]
[1747400415639,59.44,172.17,172.11,6.7973304]
[1747400415835,59.44,172.18,172.17,5.8055]
[1747400416541,59.44,172.18,172.11,6.7973304]
[1747400416741,59.44,172.18,172.09,3.8555]
[1747400417236,65.2456,172.18,172.09,3.8555]
[1747400417739,5.8058,172.17,172.13,5.8068]
[1747400418344,59.44,172.18,172.07,59.4]
[1747400418737,59.44,172.18,172.06,1.8432]
[1747400418938,5.8064,172.15,172.11,5.8075]
[1747400419136,6.7973304,172.12,171.93,6.7973304]
[1747400419340,6.7973304,172.1,171.96,6.7973304]
[1747400419545,6.7973304,172.1,172.0,5.8112]
[1747400420139,6.7973304,172.1,172.01,5.811]
[1747400420140,5.8091,172.07,172.01,5.811]
[1747400420339,60.64,172.12,172.04,6.7973304]
[1747400420835,60.64,172.12,172.02,60.94]
[1747400421140,60.64,172.12,171.87,11.6311]
[1747400421141,67.47986481,172.12,171.87,11.6311]
[1747400421442,10.95145537,172.09,171.91,10.95145537]
[1747400421643,120.96,172.08,171.93,59.5]
[1747400421838,120.96,172.07,171.93,120.96]
[1747400422035,120.96,172.07,171.94,1.8686]
[1747400422439,120.96,172.07,171.95,1.8551]
[1747400422645,5.8118,171.99,171.95,7.6681]
[1747400423041,120.92,172.0,171.95,1.8551]
[1747400423242,5.8121,171.98,171.9,120.92]
[1747400423545,120.92,172.0,171.9,120.92]
[1747400424238,1.5603,172.06,171.9,131.87145537]
[1747400424546,121.08,172.05,171.9,131.87145537]
[1747400424846,121.08,172.05,171.97,5.8124]
[1747400425037,1.5603,172.06,171.9,131.87145537]
[1747400425243,121.08,172.05,171.94,10.95145537]
[1747400425547,121.08,172.05,171.95,126.8449]
[1747400425745,61.56,172.05,171.95,126.8449]
[1747400426446,61.56,172.05,172.03,5.8104]
[1747400426634,61.56,172.05,171.95,126.8449]
[1747400426839,67.3699,172.05,172.01,5.8108]
[1747400427146,61.56,172.05,171.95,126.8449]
[1747400427452,61.56,172.05,172.02,5.8107]
[1747400428049,67.3697,172.05,172.01,5.811]
[1747400428250,61.56,172.05,172.01,5.811]
[1747400428651,67.3698,172.05,172.02,5.8107]
[1747400429150,59.54,172.04,171.81,575.64656369]
[1747400429346,61.1054,172.04,171.85,1.8167]